lending/lending_fUSD_20260330
["ID","MTS","AMOUNT","RATE_DAILY","PERIOD"]
[419078117,1774840250517,-501.36760974,0.00014821,2]
[419078118,1774840250527,-484.0,0.00014823,2]
[419078119,1774840250536,-503.04563451,0.00014825,3]
[419078120,1774840250546,-152.0,0.00014827,17]
[419078121,1774840250555,-216.446537,0.00014835,2]
[419078122,1774840250564,-216.446537,0.00014835,2]
[419078123,1774840250574,-216.446537,0.00014835,2]
[419078124,1774840250584,-216.446537,0.00014835,2]
[419078125,1774840250593,-151.0,0.00014835,2]
[419078126,1774840250603,-151.0,0.00014835,2]
[419078127,1774840250612,-151.0,0.00014835,2]
[419078128,1774840250621,-4996.92286626,0.0001485,2]
[419078129,1774840250631,-484.0,0.00014869,2]
[419078130,1774840250640,-2000.0,0.00014875,2]
[419078131,1774840250649,-2000.0,0.00014875,2]
[419078132,1774840250658,-2000.0,0.00014875,2]
[419078133,1774840250667,-2000.0,0.00014875,2]
[419078134,1774840250676,-2000.0,0.00014875,2]
[419078135,1774840250686,-2000.0,0.00014875,2]
[419078136,1774840250695,-2000.0,0.00014875,2]
[419078137,1774840250705,-2000.0,0.00014875,2]
[419078138,1774840250714,-2000.0,0.00014875,2]
[419078139,1774840250723,-1932.0,0.00014875,2]
[419078140,1774840250732,-432.53,0.00014885,2]
[419078141,1774840250742,-1040.84,0.000149,2]
[419078142,1774840250751,-484.0,0.00014901,2]
[419078143,1774840250760,-500.0,0.0001492,2]
[419078144,1774840250770,-200.0,0.0001492,2]
[419078145,1774840250779,-1000.0,0.00014924,2]
[419078146,1774840250788,-200.0,0.00014932,2]
[419078147,1774840250797,-152.0,0.00014941,18]
[419078148,1774840250807,-432.53,0.00014941,2]
[419078149,1774840250816,-1418.75412177,0.00014955,2]
[419078150,1774840250825,-161.0,0.00014961,2]
[419078151,1774840250834,-205.65,0.0001497,2]
[419078152,1774840250843,-151.0,0.00014971,2]
[419078153,1774840250853,-1592.87721993,0.00014971,2]
[419078154,1774840250862,-233.51889341,0.00014971,2]
[419078155,1774840250871,-233.51889341,0.00014971,2]
[419078156,1774840250880,-194.72792766,0.00014971,2]
[419078157,1774840250890,-200.0,0.00014971,2]
[419078158,1774840250899,-312.13772435,0.00014971,2]
[419078159,1774840250909,-7625.2113,0.00014985,2]
[419078160,1774840250918,-484.0,0.00014985,2]
[419078161,1774840250928,-494.0,0.00014986,2]
[419078162,1774840250939,-155.0,0.0001499,2]
[419078163,1774840250949,-1446.3845279,0.00014997,2]
[419078164,1774840250959,-432.53,0.00014998,2]
[419078165,1774840250968,-3043.03841955,0.00015,2]
[419078166,1774840250978,-445.1845,0.00015,22]
[419078167,1774840250987,-500.0,0.00015,2]
[419078168,1774840250997,-300.0,0.00015,2]
[419078169,1774840251006,-200.0,0.00015001,2]
[419078170,1774840251015,-150.1,0.00015001,2]
[419078171,1774840251026,-150.0,0.00015001,2]
[419078172,1774840251035,-150.0,0.00015001,2]
[419078173,1774840251044,-150.0,0.00015001,2]
[419078174,1774840251053,-150.099,0.00015001,2]
[419078175,1774840251063,-150.0,0.00015001,2]
[419078176,1774840251072,-150.069,0.00015001,2]
[419078177,1774840251081,-150.0,0.00015001,2]
[419078178,1774840251091,-150.0,0.00015001,2]
[419078179,1774840251420,-150.106,0.00015001,2]
[419078180,1774840251431,-1050.709,0.00015001,2]
[419078181,1774840251442,-1348.966,0.00015001,2]
[419078182,1774840251457,-623.031,0.00015001,2]
[419078183,1774840251468,-150.129,0.00015001,2]
[419078184,1774840251478,-205.65,0.00015009,2]
[419078185,1774840251488,-654.74068049,0.00015009,2]
[419078186,1774840251498,-2807.0,0.00015023,2]
[419078187,1774840251508,-152.0,0.00015055,19]
[419078188,1774840251518,-3889.0,0.00015066,2]
[419078189,1774840251528,-785.01,0.00015068,2]
[419078190,1774840251537,-880.86,0.00015068,2]
[419078191,1774840251547,-151.0,0.00015068,2]
[419078192,1774840251556,-151.0,0.00015068,2]
[419078193,1774840251566,-151.0,0.00015068,2]
[419078194,1774840251576,-1500.0,0.00015068,2]
[419078195,1774840251585,-1500.0,0.00015068,2]
[419078196,1774840251596,-1500.0,0.00015068,2]
[419078197,1774840251606,-501.28301844,0.00015068,2]
[419078198,1774840251616,-900.0,0.00015068,2]
[419078199,1774840251627,-5681.74,0.00015068,2]
[419078200,1774840251636,-21027.18401907,0.00015072,2]
[419078201,1774840251645,-237.43482,0.00015082,2]
[419078202,1774840251655,-1571.0,0.00015082,2]
[419078203,1774840251667,-7142.4599701,0.00015085,2]
[419078204,1774840251677,-5000.0,0.00015085,2]
[419078205,1774840251686,-1692.822563,0.00015086,2]
[419078206,1774840251696,-1692.822563,0.00015086,2]
[419078207,1774840251705,-1692.822563,0.00015086,2]
[419078208,1774840251714,-1692.822563,0.00015086,2]
[419078209,1774840251724,-151.0,0.00015086,2]
[419078210,1774840251735,-2000.0,0.000151,2]
[419078211,1774840251744,-2000.0,0.000151,2]
[419078212,1774840251753,-503.0,0.00015121,2]
[419078213,1774840251763,-725.0,0.00015121,2]
[419078214,1774840251772,-274.218894,0.00015129,7]
[419078215,1774840251782,-9035.0,0.00015136,2]
[419078216,1774840251792,-3620.0,0.00015142,2]
[419078217,1774840251801,-1502.63308879,0.00015142,2]
[419078218,1774840251811,-1325.27887351,0.00015142,2]
[419078219,1774840251821,-1511.29314613,0.00015142,2]
[419078220,1774840251831,-1500.0,0.00015142,2]
[419078221,1774840251841,-484.0,0.00015149,2]
[419078222,1774840251850,-1596.0,0.00015155,2]
[419078223,1774840251860,-152.0,0.00015168,20]
[419078224,1774840251870,-1775.0,0.00015204,2]
[419078225,1774840251879,-10000.0,0.00015205,2]
[419078226,1774840251891,-665.088916,0.00015206,7]
[419078227,1774840251901,-1775.0,0.00015209,2]
[419078228,1774840251912,-155.0,0.00015235,2]
[419078229,1774840251921,-500.0,0.00015237,2]
[419078230,1774840251930,-1464.49,0.00015268,30]
[419078231,1774840251940,-152.0,0.00015282,21]
[419078232,1774840251950,-1517.64,0.000153,2]
[419078233,1774840251960,-4500.0,0.000153,5]
[419078234,1774840251970,-1032.0,0.00015301,2]
[419078235,1774840251979,-1775.0,0.00015333,2]
[419078236,1774840251989,-526.45634592,0.00015338,2]
[419078237,1774840251999,-1775.0,0.00015341,2]
[419078238,1774840252009,-786.3,0.00015342,2]
[419078239,1774840252019,-882.42,0.00015342,2]
[419078240,1774840252028,-2000.0,0.00015342,2]
[419078241,1774840252038,-2000.0,0.00015342,2]
[419078242,1774840252048,-11503.47132506,0.00015364,2]
[419078243,1774840252058,-1775.0,0.00015385,2]
[419078244,1774840252068,-152.0,0.00015395,22]
[419078245,1774840252078,-512.22004711,0.000154,2]
[419078246,1774840252087,-162.0,0.000154,2]
[419078247,1774840252097,-161.0,0.000154,2]
[419078248,1774840252107,-163.0,0.000154,2]
[419078249,1774840252116,-5600.0,0.000154,5]
[419078250,1774840252126,-2807.0,0.000154,2]
[419078251,1774840252136,-347.52,0.00015418,2]
[419078252,1774840252147,-1418.75412175,0.00015428,2]
[419078253,1774840252157,-502.735728,0.00015438,7]
[419078254,1774840252167,-654.74068049,0.00015455,2]
[419078255,1774840252176,-1260.01093087,0.00015472,2]
[419078256,1774840252186,-214.60924826,0.0001548,2]
[419078257,1774840252195,-155.0,0.00015481,2]
[419078258,1774840252206,-767.44416053,0.000155,3]
[419078259,1774840252216,-1230.58591204,0.000155,2]
[419078260,1774840252226,-4168.27,0.000155,2]
[419078261,1774840252236,-4609.76,0.000155,2]
[419078262,1774840252246,-1100.0,0.000155,5]
[419078263,1774840252256,-901.61248451,0.000155,3]
[419078264,1774840252265,-4000.0,0.00015507,2]
[419078265,1774840252275,-152.0,0.00015509,23]
[419078266,1774840252284,-535.72,0.00015516,2]
[419078267,1774840252294,-3889.0,0.00015517,2]
[419078268,1774840252303,-151.0,0.00015517,2]
[419078269,1774840252314,-151.0,0.00015517,2]
[419078270,1774840252323,-151.0,0.00015519,2]
[419078271,1774840252333,-1651.81367706,0.00015519,2]
[419078272,1774840252344,-242.15909246,0.00015519,2]
[419078273,1774840252353,-242.15909246,0.00015519,2]
[419078274,1774840252363,-201.93286099,0.00015519,2]
[419078275,1774840252374,-200.0,0.00015519,2]
[419078276,1774840252384,-323.68682015,0.00015519,2]
[419078277,1774840252394,-1775.0,0.00015528,2]
[419078278,1774840252404,-500.0,0.00015554,2]
[419078279,1774840252415,-237.43482,0.00015575,2]
[419078280,1774840252424,-151.0,0.00015578,2]
[419078281,1774840252435,-1775.0,0.00015596,2]
[419078282,1774840252444,-1100.0,0.000156,5]
[419078283,1774840252454,-157.0,0.000156,2]
[419078284,1774840252464,-157.0,0.000156,3]
[419078285,1774840252474,-160.41,0.000156,3]
[419078286,1774840252484,-168.26,0.00015601,2]
[419078287,1774840252494,-1129.269588,0.00015609,2]
[419078288,1774840252504,-1129.269588,0.00015609,2]
[419078289,1774840252514,-1129.269588,0.00015609,2]
[419078290,1774840252523,-1129.269597,0.00015609,2]
[419078291,1774840252533,-1310.737665,0.00015609,2]
[419078292,1774840252543,-1310.737665,0.00015609,2]
[419078293,1774840252552,-1310.737665,0.00015609,2]
[419078294,1774840252563,-1310.73767,0.00015609,2]
[419078295,1774840252572,-5888.0,0.00015609,2]
[419078296,1774840252582,-1000.0,0.00015616,2]
[419078297,1774840252592,-395.15417605,0.00015616,2]
[419078298,1774840252602,-2000.0,0.00015616,2]
[419078299,1774840252612,-152.0,0.00015623,24]
[419078300,1774840252622,-1571.0,0.0001563,2]
[419078301,1774840252632,-161.0,0.0001563,2]
[419078302,1774840252642,-347.52,0.00015681,2]
[419078303,1774840252651,-2000.0,0.0001569,2]
[419078304,1774840252662,-2885.62,0.000157,2]
[419078305,1774840252672,-216.446537,0.000157,2]
[419078306,1774840252681,-216.446537,0.000157,2]
[419078307,1774840252691,-216.446537,0.000157,2]
[419078308,1774840252701,-216.446533,0.000157,2]
[419078309,1774840252712,-151.0,0.000157,2]
[419078310,1774840252721,-151.0,0.000157,2]
[419078311,1774840252731,-177.520482,0.000157,2]
[419078312,1774840252740,-1100.0,0.000157,5]
[419078313,1774840252751,-1775.0,0.00015717,2]
[419078314,1774840252761,-1571.0,0.0001572,2]
[419078315,1774840252771,-155.0,0.00015727,2]
[419078316,1774840252780,-152.0,0.00015736,25]
[419078317,1774840252789,-500.0,0.0001574,2]
[419078318,1774840252799,-500.0,0.0001574,2]
[419078319,1774840252808,-500.0,0.0001574,2]
[419078320,1774840252818,-1061.69,0.0001574,2]
[419078321,1774840252828,-151.0,0.00015753,2]
[419078322,1774840252838,-151.0,0.00015753,2]
[419078323,1774840252847,-151.0,0.00015753,2]
[419078324,1774840252857,-151.0,0.00015753,2]
[419078325,1774840252866,-151.0,0.00015753,2]
[419078326,1774840252875,-151.0,0.00015753,2]
[419078327,1774840252885,-195.768848,0.00015753,2]
[419078328,1774840252895,-340.0,0.00015753,2]
[419078329,1774840252904,-172.191946,0.00015753,2]
[419078330,1774840252914,-172.191946,0.00015753,2]
[419078331,1774840252924,-172.191946,0.00015753,2]
[419078332,1774840252933,-172.191946,0.00015753,2]
[419078333,1774840252943,-5681.74,0.00015753,2]
[419078334,1774840252954,-510.764847,0.00015773,2]
[419078335,1774840252964,-991.74543,0.00015773,2]
[419078336,1774840252973,-1692.822563,0.00015773,2]
[419078337,1774840252983,-1692.822563,0.00015773,2]
[419078338,1774840252992,-1692.822563,0.00015773,2]
[419078339,1774840253002,-1692.822563,0.00015773,2]
[419078340,1774840253011,-151.0,0.00015773,2]
[419078341,1774840253021,-1100.0,0.000158,5]
[419078342,1774840253030,-2808.0,0.00015802,2]
[419078343,1774840253040,-2257.60408896,0.00015807,2]
[419078344,1774840253049,-1775.0,0.0001581,2]
[419078345,1774840253059,-500.0,0.00015839,2]
[419078346,1774840253069,-809.41,0.00015839,2]
[419078347,1774840253079,-525.61,0.00015839,2]
[419078348,1774840253089,-500.0,0.00015839,2]
[419078349,1774840253098,-540.54,0.00015839,2]
[419078350,1774840253108,-500.0,0.00015839,2]
[419078351,1774840253117,-1133.93,0.00015839,2]
[419078352,1774840253127,-609.94,0.00015839,2]
[419078353,1774840253136,-500.0,0.00015839,2]
[419078354,1774840253146,-500.0,0.00015839,2]
[419078355,1774840253156,-500.0,0.00015839,2]
[419078356,1774840253166,-500.0,0.00015839,2]
[419078357,1774840253176,-500.0,0.00015839,2]
[419078358,1774840253186,-539.17,0.00015839,2]
[419078359,1774840253198,-500.0,0.00015839,2]
[419078360,1774840253208,-500.0,0.00015839,2]
[419078361,1774840253218,-152.0,0.0001585,26]
[419078362,1774840253228,-150.0,0.0001587,2]
[419078363,1774840253237,-500.0,0.00015871,2]
[419078364,1774840253247,-200.0,0.00015871,2]
[419078365,1774840253257,-437.260983,0.00015872,2]
[419078366,1774840253266,-437.260983,0.00015872,2]
[419078367,1774840253276,-437.260983,0.00015872,2]
[419078368,1774840253286,-437.260983,0.00015872,2]
[419078369,1774840253296,-500.0,0.00015878,2]
[419078370,1774840253306,-500.0,0.00015878,2]
[419078371,1774840253315,-500.0,0.00015878,2]
[419078372,1774840253325,-500.0,0.00015878,2]
[419078373,1774840253335,-500.0,0.00015878,2]
[419078374,1774840253345,-500.0,0.00015878,2]
[419078375,1774840253355,-500.0,0.00015878,2]
[419078376,1774840253365,-500.0,0.00015878,2]
[419078377,1774840253375,-591.43361287,0.00015878,2]
[419078378,1774840253385,-500.0,0.00015878,2]
[419078379,1774840253395,-500.0,0.00015878,2]
[419078380,1774840253405,-500.0,0.00015878,2]
[419078381,1774840253415,-622.32020862,0.00015878,2]
[419078382,1774840253425,-1061.69,0.00015878,2]
[419078383,1774840253435,-1061.69,0.00015878,2]
[419078384,1774840253445,-1061.69,0.00015878,2]
[419078385,1774840253455,-1061.69,0.00015878,2]
[419078386,1774840253465,-1061.69,0.00015878,2]
[419078387,1774840253474,-237.43482,0.00015887,2]
[419078388,1774840253484,-2000.0,0.0001589,2]
[419078389,1774840253495,-2500.0,0.0001589,2]
[419078390,1774840253504,-2500.0,0.0001589,2]
[419078391,1774840253514,-4000.0,0.00015895,2]
[419078392,1774840253524,-237.43482,0.00015897,2]
[419078393,1774840253534,-500.0,0.00015899,2]
[419078394,1774840253544,-500.0,0.00015899,2]
[419078395,1774840253553,-500.0,0.00015899,2]
[419078396,1774840253563,-500.0,0.00015899,2]
[419078397,1774840253574,-1061.69,0.00015899,2]
[419078398,1774840253584,-7206.5128576,0.000159,2]
[419078399,1774840254071,-362.81044287,8.891e-05,2]
[419078400,1774840254124,-809.18955713,8.891e-05,2]
[419078401,1774840254134,-292.9,0.00012695,30]
[419078402,1774840254145,-585.8,0.00014055,30]
[419078403,1774840254155,-409.13578497,0.00015335,2]
[419078404,1774840254165,-4376.98469337,0.000159,2]
[419078405,1774840254177,-168743.72451817,0.000159,2]
[419078406,1774840255165,2900.0,7.573e-05,2]
[419078407,1774840255212,2800.0,7.701e-05,2]
[419078408,1774840255294,2300.0,8.042e-05,2]
[419078409,1774840256837,1814.83,8.224e-05,2]
[419078410,1774840256969,185.18,8.416e-05,2]
[419078411,1774840256994,714.82,8.416e-05,2]
[419078412,1774840257565,1700.0,8.515e-05,2]
[419078413,1774840268602,3800.01,7.945e-05,2]
[419078414,1774840288615,488.5276,0.000137,120]
[419078415,1774840303148,3785.18,6.791e-05,2]
[419078416,1774840303171,262.4,6.791e-05,2]
[419078417,1774840303238,4047.58,7.149e-05,2]
[419078418,1774840303299,4047.58,7.506e-05,2]
[419078419,1774840303375,1642.45,7.864e-05,2]
[419078420,1774840303399,2405.13,7.864e-05,2]
[419078421,1774840303496,4047.58,8.221e-05,2]
[419078422,1774840320308,159.42,7.732e-05,2]
[419078423,1774840324628,176.24498328,8.546e-05,2]
[419078424,1774840327154,500.0,8.546e-05,2]
[419078425,1774840327206,500.0,8.546e-05,2]
[419078426,1774840327264,500.0,8.546e-05,2]
[419078427,1774840327315,390.4160598,8.546e-05,2]
[419078428,1774840327363,500.0,8.546e-05,2]
[419078429,1774840327422,500.0,8.546e-05,2]
[419078430,1774840338734,321.21895692,8.546e-05,2]
[419078431,1774840338762,178.78104308,8.546e-05,2]
[419078432,1774840338808,500.0,8.546e-05,2]
[419078433,1774840339299,500.0,8.546e-05,2]
[419078434,1774840339352,500.0,8.546e-05,2]
[419078435,1774840339385,500.0,8.546e-05,2]
[419078436,1774840339421,500.0,8.546e-05,2]
[419078437,1774840339460,500.0,8.546e-05,2]
[419078438,1774840339508,500.0,8.546e-05,2]
[419078439,1774840339542,500.0,8.546e-05,2]
[419078440,1774840339590,500.0,8.546e-05,2]
[419078441,1774840339626,500.0,8.546e-05,2]
[419078442,1774840339659,500.0,8.546e-05,2]
[419078443,1774840339692,500.0,8.546e-05,2]
[419078444,1774840339730,500.0,8.546e-05,2]
[419078445,1774840339767,500.0,8.546e-05,2]
[419078446,1774840339799,500.0,8.546e-05,2]
[419078447,1774840339850,500.0,8.546e-05,2]
[419078448,1774840339884,500.0,8.546e-05,2]
[419078449,1774840339922,500.0,8.546e-05,2]
[419078450,1774840339971,500.0,8.546e-05,2]
[419078451,1774840340010,321.22895692,8.546e-05,2]
[419078452,1774840340036,178.77104308,8.546e-05,2]
[419078453,1774840340078,500.0,8.546e-05,2]
[419078454,1774840340113,500.0,8.546e-05,2]
[419078455,1774840340151,500.0,8.546e-05,2]
[419078456,1774840340188,500.0,8.546e-05,2]
[419078457,1774840340227,500.0,8.546e-05,2]
[419078458,1774840340279,500.0,8.546e-05,2]
[419078459,1774840340314,500.0,8.546e-05,2]
[419078460,1774840340363,500.0,8.546e-05,2]
[419078461,1774840340398,500.0,8.546e-05,2]
[419078462,1774840340440,500.0,8.546e-05,2]
[419078463,1774840340480,500.0,8.546e-05,2]
[419078464,1774840340515,500.0,8.546e-05,2]
[419078465,1774840340565,500.0,8.546e-05,2]
[419078466,1774840340612,560.6582531,8.546e-05,2]
[419078467,1774840340653,500.0,8.546e-05,2]
[419078468,1774840340691,500.0,8.546e-05,2]
[419078469,1774840340726,500.0,8.546e-05,2]
[419078470,1774840340774,500.0,8.546e-05,2]
[419078471,1774840340811,500.0,8.546e-05,2]
[419078472,1774840340849,260.58070382,8.546e-05,2]
[419078473,1774840340876,239.41929618,8.546e-05,2]
[419078474,1774840340914,500.0,8.546e-05,2]
[419078475,1774840340990,500.0,8.546e-05,2]
[419078476,1774840341032,500.0,8.546e-05,2]
[419078477,1774840341071,500.0,8.546e-05,2]
[419078478,1774840354840,500.0,8.546e-05,2]
[419078479,1774840354884,500.0,8.546e-05,2]
[419078480,1774840354926,500.0,8.546e-05,2]
[419078481,1774840354973,500.0,8.546e-05,2]
[419078482,1774840355024,500.0,8.546e-05,2]
[419078483,1774840355065,500.0,8.546e-05,2]
[419078484,1774840355107,500.0,8.546e-05,2]
[419078485,1774840355153,500.0,8.546e-05,2]
[419078486,1774840355222,500.0,8.546e-05,2]
[419078487,1774840362230,263.38346438,8.546e-05,2]
[419078488,1774840382606,611.43,8.312e-05,2]
[419078489,1774840386961,351.2913277,8.546e-05,2]
[419078490,1774840566095,800.0,8.237e-05,2]
[419078491,1774840589506,300.0,0.0002,120]
[419078492,1774840715183,-150.0,8.579e-05,2]
[419078493,1774840715205,-850.0,8.579e-05,2]
[419078494,1774840719904,-1000.0,8.579e-05,2]
[419078495,1774840719991,9200.01,8.579e-05,2]
[419078496,1774840720016,799.99,8.579e-05,2]
[419078497,1774840722470,-1000.0,8.579e-05,2]
[419078498,1774840725927,-1000.0,8.579e-05,2]
[419078499,1774840728180,-197.58,8.579e-05,2]
[419078500,1774840728205,-250.0,8.585e-05,2]
[419078501,1774840728228,-300.0,8.59e-05,2]
[419078502,1774840728254,-252.42,8.59e-05,2]
[419078503,1774840731523,-47.58,8.59e-05,2]
[419078504,1774840731547,-952.42,8.591e-05,2]
[419078505,1774840733265,-1000.0,8.591e-05,2]
[419078506,1774840813528,2500.0,8.523e-05,2]
[419078507,1774840838119,-1000.0,8.591e-05,2]
[419078508,1774840839536,-746.4345456,8.591e-05,2]
[419078509,1774840839558,-240.0,8.591e-05,2]
[419078510,1774840839581,-13.5654544,8.599e-05,2]
[419078511,1774840842692,-236.4345456,8.599e-05,2]
[419078512,1774840842714,-500.63749024,8.603e-05,2]
[419078513,1774840842735,-262.92796416,8.603e-05,2]
[419078514,1774840846153,-237.38946537,8.603e-05,2]
[419078515,1774840846175,-502.76625821,8.603e-05,2]
[419078516,1774840846197,-150.0,8.621e-05,2]
[419078517,1774840846221,-109.84427642,8.622e-05,2]
[419078518,1774840847655,-890.15572358,8.622e-05,2]
[419078519,1774840847679,-109.84427642,8.622e-05,2]
[419078520,1774840849635,-190.15572358,8.622e-05,2]
[419078521,1774840849659,-234.0,8.622e-05,2]
[419078522,1774840849683,-575.84427642,8.622e-05,2]
[419078523,1774840849860,-624.15572358,8.622e-05,2]
[419078524,1774840849884,-375.84427642,8.623e-05,2]
[419078525,1774840889241,4611.605,8.45e-05,2]
[419078526,1774840889278,240.433,8.45e-05,2]
[419078527,1774840963593,-500.0,8.603e-05,2]
[419078528,1774840963617,-500.0,8.603e-05,2]
[419078529,1774840965936,-0.36803591,8.603e-05,2]
[419078530,1774840965961,-500.0,8.603e-05,2]
[419078531,1774840965984,-371.01374879,8.603e-05,2]
[419078532,1774840966009,-128.6182153,8.603e-05,2]
[419078533,1774840968139,-371.3817847,8.603e-05,2]
[419078534,1774840968163,-300.0,8.621e-05,2]
[419078535,1774840968184,-328.6182153,8.622e-05,2]
[419078536,1774840971764,-86.69732248,8.622e-05,2]
[419078537,1774840972527,-500.0,8.622e-05,2]
[419078538,1774840972626,-413.30267752,8.622e-05,2]
[419078539,1774840974456,-86.69732248,8.622e-05,2]
[419078540,1774840974478,-500.0,8.622e-05,2]
[419078541,1774840974501,-413.30267752,8.622e-05,2]
[419078542,1774840976498,1847.982,8.523e-05,2]
[419078543,1774840976522,652.018,8.523e-05,2]
[419078544,1774840979641,-109.98856434,8.622e-05,2]
[419078545,1774840979670,-500.0,8.622e-05,2]
[419078546,1774840979700,-340.01143566,8.622e-05,2]
[419078547,1774840994849,800.0,8.307e-05,2]
[419078548,1774841025016,5324.1242,8.523e-05,2]
[419078549,1774841034392,-300.0,8.621e-05,2]
[419078550,1774841067049,193.68,9e-05,3]
[419078551,1774841090239,175.59,7.187e-05,2]
[419078552,1774841090432,175.59,7.906e-05,2]
[419078553,1774841101194,300.0,8.621e-05,2]
[419078554,1774841101227,300.0,8.621e-05,2]
[419078555,1774841101263,1200.0,8.621e-05,2]
[419078556,1774841101293,264.0,8.621e-05,2]
[419078557,1774841121407,690.0,8.309e-05,2]
[419078558,1774841137451,6294.83,8.523e-05,2]
[419078559,1774841137473,10000.01,8.523e-05,2]
[419078560,1774841137495,10000.01,8.523e-05,2]
[419078561,1774841137516,10000.01,8.523e-05,2]
[419078562,1774841137539,10000.01,8.523e-05,2]
[419078563,1774841137560,10000.01,8.523e-05,2]
[419078564,1774841137581,10000.01,8.523e-05,2]
[419078565,1774841137603,10000.01,8.523e-05,2]
[419078566,1774841137624,10000.01,8.523e-05,2]
[419078567,1774841137644,10000.01,8.523e-05,2]
[419078568,1774841181985,1300.0,8.066e-05,2]
[419078569,1774841186051,3319.42,8.287e-05,2]
[419078570,1774841205173,-752.9892,8.523e-05,2]
[419078571,1774841205196,-1247.0108,8.523e-05,2]
[419078572,1774841277885,200.0,8.8e-05,3]
[419078573,1774841279973,400.0,8.9e-05,3]
[419078574,1774841283527,600.0,9e-05,3]
[419078575,1774841367809,550.0,8.333e-05,2]
[419078576,1774841428656,674.43,8.081e-05,2]
[419078586,1774841432597,-184.36842507,8.522e-05,2]
[419078587,1774841432607,-500.0,8.522e-05,2]
[419078588,1774841432616,-500.0,8.522e-05,2]
[419078589,1774841432625,-251.95251719,8.522e-05,2]
[419078590,1774841432635,-1200.0,8.522e-05,2]
[419078591,1774841432644,-150.0,8.522e-05,2]
[419078592,1774841432655,-300.0,8.522e-05,2]
[419078593,1774841432664,-913.33780269,8.523e-05,2]
[419078594,1774841432695,-339.65139731,8.523e-05,2]
[419078595,1774841432705,-1263467.35884808,8.523e-05,2]
[419078596,1774841432717,-101759.96287286,8.523e-05,2]
[419078597,1774841432728,-134772.67827906,8.523e-05,2]
[419078598,1774841432738,-194.61263594,8.572e-05,2]
[419078599,1774841432747,-960.47098571,8.622e-05,2]
[419078600,1774841432757,-764.89,8.622e-05,2]
[419078601,1774841432766,-500.0,8.623e-05,2]
[419078602,1774841432775,-114821.43502522,8.623e-05,2]
[419078603,1774841432787,-270581.09615048,8.623e-05,2]
[419078604,1774841432798,-1254.41808677,8.623e-05,2]
[419078605,1774841432830,-1976.6875304,8.623e-05,2]
[419078607,1774841438483,-347.40901381,8.522e-05,2]
[419078608,1774841438492,-500.0,8.522e-05,2]
[419078609,1774841438501,-500.0,8.522e-05,2]
[419078610,1774841438511,-578.7172113,8.522e-05,2]
[419078611,1774841438520,-500.0,8.522e-05,2]
[419078612,1774841438530,-500.0,8.522e-05,2]
[419078613,1774841438540,-500.0,8.522e-05,2]
[419078614,1774841438551,-500.0,8.522e-05,2]
[419078615,1774841438561,-500.0,8.522e-05,2]
[419078616,1774841438571,-500.0,8.522e-05,2]
[419078617,1774841438580,-500.0,8.522e-05,2]
[419078618,1774841438591,-18.4329105,8.522e-05,2]
[419078663,1774841440735,-481.5670895,8.522e-05,2]
[419078664,1774841440744,-500.0,8.522e-05,2]
[419078665,1774841440754,-500.0,8.522e-05,2]
[419078666,1774841440763,-500.0,8.522e-05,2]
[419078667,1774841440773,-442.47478745,8.522e-05,2]
[419078668,1774841440783,-500.0,8.522e-05,2]
[419078669,1774841440792,-500.0,8.522e-05,2]
[419078670,1774841440802,-500.0,8.522e-05,2]